bitfinex/quotes_BTCUSD_20251116
["timestamp","ask_amount","ask_price","bid_price","bid_amount"]
[1763302183970,0.20937338,95524.0,95519.0,0.04341874]
[1763302184173,0.20937338,95524.0,95523.0,0.04341874]
[1763302184548,0.20937338,95524.0,95520.0,0.04341874]
[1763302184845,0.20937603,95522.0,95520.0,0.04341874]
[1763302185276,0.20937338,95524.0,95520.0,0.04341874]
[1763302185448,0.20937338,95524.0,95523.0,0.04341874]
[1763302185657,0.20936847,95526.0,95520.0,0.04341874]
[1763302185825,0.20937365,95524.0,95520.0,0.04441874]
[1763302186239,0.20937365,95524.0,95520.0,0.04341874]
[1763302186659,0.20937365,95524.0,95523.0,0.001]
[1763302186889,0.20937365,95524.0,95520.0,0.04341874]
[1763302187280,0.20937365,95524.0,95520.0,0.04441874]
[1763302187426,0.2093765,95522.0,95520.0,0.04541874]
[1763302188862,0.20937804,95521.0,95519.0,0.04341874]
[1763302189897,0.20937804,95521.0,95520.0,0.001]
[1763302190071,0.20937804,95521.0,95520.0,0.002]
[1763302190289,0.20937804,95521.0,95520.0,0.001]
[1763302190865,0.20937804,95521.0,95519.0,0.04341874]
[1763302191036,0.20937804,95521.0,95520.0,0.001]
[1763302191597,0.20937804,95521.0,95519.0,0.1184946]
[1763302191810,0.20936269,95528.0,95519.0,0.04341874]
[1763302192005,0.02093376,95527.0,95519.0,0.04441874]
[1763302192349,0.01212,95527.0,95520.0,0.002]
[1763302192548,0.20937835,95521.0,95519.0,0.1194946]
[1763302192994,0.20937835,95521.0,95519.0,0.1204946]
[1763302193146,0.20937835,95521.0,95519.0,0.1194946]
[1763302193574,0.20937835,95521.0,95519.0,0.1204946]
[1763302193784,0.20937835,95521.0,95519.0,0.1194946]
[1763302193991,0.20937835,95521.0,95520.0,0.001]
[1763302195348,0.20937835,95521.0,95516.0,0.04347061]
[1763302195349,0.20938681,95517.0,95516.0,0.04347061]
[1763302196533,0.20937974,95521.0,95516.0,0.04347061]
[1763302196745,0.20938674,95518.0,95516.0,0.04347061]
[1763302196921,0.20938674,95518.0,95516.0,0.04547061]
[1763302197122,0.20938674,95518.0,95516.0,0.12054647]
[1763302197453,0.20938674,95518.0,95516.0,0.12154647]
[1763302197861,0.20938023,95520.0,95516.0,0.12054647]
[1763302198276,0.20938023,95520.0,95517.0,0.07507586]
[1763302198478,0.2093843,95519.0,95517.0,0.07507586]
[1763302198690,0.20938681,95517.0,95516.0,0.12154647]
[1763302198992,0.20938681,95517.0,95516.0,0.11954647]
[1763302199320,0.2339903,95525.0,95516.0,0.11954647]
[1763302199321,0.20937821,95521.0,95516.0,0.04447061]
[1763302199673,0.20938442,95519.0,95516.0,0.04447061]
[1763302199879,0.20938623,95518.0,95516.0,0.04547061]
[1763302200085,0.20938623,95518.0,95516.0,5.187e-05]
[1763302200303,0.20938023,95520.0,95517.0,0.04341874]
[1763302200706,0.20937672,95522.0,95516.0,0.04347061]
[1763302200913,0.20936138,95529.0,95516.0,5.187e-05]
[1763302201304,0.20937146,95524.0,95517.0,0.04341874]
[1763302201537,0.02093376,95523.0,95517.0,0.04341874]
[1763302201750,0.20938461,95518.0,95516.0,5.187e-05]
[1763302201960,0.03533,95527.0,95517.0,0.04341874]
[1763302201961,0.20937967,95521.0,95517.0,0.04341874]
[1763302202170,0.20938247,95519.0,95517.0,0.04341874]
[1763302202819,0.20938681,95517.0,95516.0,0.00105187]
[1763302203032,0.22576681,95517.0,95516.0,0.00105187]
[1763302203416,0.22576681,95517.0,95516.0,5.187e-05]
[1763302204549,0.22576681,95517.0,95516.0,0.00105187]
[1763302205694,0.22576681,95517.0,95516.0,0.00205187]
[1763302206595,0.01167,95522.0,95516.0,0.00205187]
[1763302206886,0.02093376,95521.0,95516.0,0.00205187]
[1763302207336,0.20938023,95520.0,95516.0,0.00205187]
[1763302207558,0.20937979,95521.0,95516.0,0.00105187]
[1763302207775,0.23031355,95521.0,95516.0,0.00105187]
[1763302208012,0.20938681,95517.0,95516.0,0.00105187]
[1763302208243,0.01167,95522.0,95516.0,0.00105187]
[1763302208482,0.20938454,95519.0,95516.0,5.187e-05]
[1763302208705,0.20938454,95519.0,95516.0,0.00105187]
[1763302208945,0.20937923,95521.0,95516.0,5.187e-05]
[1763302209163,0.20938674,95518.0,95516.0,5.187e-05]
[1763302209427,0.20938674,95518.0,95516.0,0.07534296]
[1763302209654,0.01167,95517.0,95516.0,0.07634296]
[1763302209885,0.02805,95517.0,95516.0,0.07542311]
[1763302210112,0.02805,95517.0,95516.0,5.187e-05]
[1763302210341,0.04898376,95517.0,95516.0,0.00105187]
[1763302210766,0.04898376,95517.0,95516.0,5.187e-05]
[1763302210912,0.04898376,95517.0,95516.0,0.00105187]
[1763302211144,0.02805,95517.0,95516.0,0.07742311]
[1763302211339,0.02805,95517.0,95516.0,0.07642311]
[1763302211610,0.01167,95522.0,95516.0,0.07642311]
[1763302211611,0.22104639,95522.0,95516.0,0.07642311]
[1763302211769,0.22104639,95522.0,95516.0,0.07742311]
[1763302211976,0.22104639,95522.0,95518.0,0.07537124]
[1763302212423,0.20937972,95521.0,95518.0,0.07537124]
[1763302212635,0.20938439,95519.0,95517.0,0.07537124]
[1763302213748,0.20938439,95519.0,95518.0,0.07537124]
[1763302213918,0.01167,95529.0,95517.0,0.04341874]
[1763302214127,0.20937133,95525.0,95520.0,0.0753725]
[1763302214327,0.20937133,95525.0,95521.0,0.0753725]
[1763302215182,0.02093376,95524.0,95521.0,0.0753725]
[1763302215590,0.02093376,95524.0,95522.0,0.0753725]
[1763302216461,0.22103269,95529.0,95522.0,0.0753725]
[1763302216788,0.22103269,95529.0,95523.0,0.20937365]
[1763302216789,0.20936479,95528.0,95523.0,0.20937365]
[1763302217202,0.20936479,95528.0,95522.0,0.0753725]
[1763302217203,0.2093675,95526.0,95522.0,0.0753725]
[1763302217408,0.02093376,95525.0,95522.0,0.0763725]
[1763302217616,0.02093376,95525.0,95522.0,0.28574832]
[1763302217833,0.02093376,95525.0,95524.0,0.20937146]
[1763302218050,0.01167,95529.0,95524.0,0.20937146]
[1763302218491,0.02093376,95528.0,95524.0,0.20937146]
[1763302218625,0.01167,95529.0,95523.0,0.28474428]
[1763302218826,0.03144708,95533.0,95528.0,0.20936218]
[1763302219023,0.20932109,95547.0,95535.0,0.20934728]
[1763302219241,0.02093376,95546.0,95534.0,0.04341874]
[1763302219475,0.2093276,95545.0,95539.0,0.20933739]
[1763302219681,0.03144223,95547.0,95542.0,0.2093305]
[1763302219857,0.24076548,95547.0,95537.0,0.0753725]
[1763302220056,0.20933124,95543.0,95538.0,0.0753725]
[1763302220258,0.03144223,95547.0,95537.0,0.28471409]
[1763302220259,0.02093376,95542.0,95537.0,0.28471409]
[1763302221196,0.20934078,95538.0,95537.0,0.0753725]
[1763302221365,0.20934078,95538.0,95537.0,0.001]
[1763302222208,0.20934078,95538.0,95536.0,0.0753725]
[1763302222409,0.20933853,95540.0,95536.0,0.0753725]
[1763302222613,0.20934167,95538.0,95537.0,0.001]
[1763302222813,0.20934167,95538.0,95537.0,0.002]
[1763302223491,0.20932983,95543.0,95537.0,0.001]
[1763302223699,0.20934078,95538.0,95537.0,0.001]
[1763302223911,0.22439078,95538.0,95537.0,0.001]
[1763302224636,0.20934556,95536.0,95534.0,0.04341874]
[1763302225325,0.20934735,95535.0,95533.0,0.04341874]
[1763302226646,0.20934494,95537.0,95533.0,0.04341874]
[1763302226827,0.04285174,95542.0,95535.0,0.04341874]
[1763302227082,0.02093376,95541.0,95535.0,0.04341874]
[1763302227678,0.02093376,95541.0,95536.0,0.20934514]
[1763302229018,0.02093376,95541.0,95540.0,0.2093364]
[1763302229236,0.03144174,95542.0,95537.0,0.20934297]
[1763302229450,0.02093376,95541.0,95537.0,0.20934297]
[1763302229657,0.20932544,95545.0,95539.0,0.20933837]
[1763302229867,0.03144174,95544.0,95540.0,0.20933448]
[1763302230076,0.20932308,95547.0,95541.0,0.20933219]
[1763302230230,0.24076482,95547.0,95541.0,0.20933219]
[1763302230856,0.02434,95559.0,95540.0,0.001]
[1763302231065,0.20933171,95543.0,95537.0,0.284715]
[1763302231423,0.20933171,95543.0,95541.0,0.001]
[1763302231625,0.20932563,95545.0,95539.0,0.20933852]
[1763302232075,0.20932563,95545.0,95540.0,0.001]
[1763302232287,0.20931887,95548.0,95541.0,0.20933421]
[1763302232451,0.04285128,95549.0,95543.0,0.20932932]
[1763302233001,0.04285128,95549.0,95544.0,0.2093259]
[1763302233150,0.01141,95549.0,95544.0,0.2093259]
[1763302233334,0.24095598,95550.0,95544.0,0.2093259]
[1763302233816,0.23025257,95549.0,95543.0,0.20932983]
[1763302233951,0.23025257,95549.0,95542.0,0.04341874]
[1763302233952,0.20932149,95547.0,95542.0,0.04341874]
[1763302234151,0.02093376,95546.0,95542.0,0.04341874]
[1763302234700,0.02093376,95546.0,95541.0,0.04341874]
[1763302234913,0.20932956,95544.0,95543.0,0.001]
[1763302235297,0.20934166,95538.0,95536.0,0.04341874]
[1763302235501,0.20934735,95535.0,95534.0,0.11879124]
[1763302235840,0.20934716,95536.0,95535.0,0.04341874]
[1763302236598,0.20934716,95536.0,95534.0,0.11879124]
[1763302237135,0.20933859,95539.0,95535.0,0.001]
[1763302237316,0.20933962,95539.0,95535.0,0.0763725]
[1763302237574,0.20934253,95538.0,95536.0,0.04341874]
[1763302237755,0.20933474,95541.0,95536.0,0.04341874]
[1763302237951,0.02093376,95540.0,95536.0,0.04341874]
[1763302238170,0.02093376,95540.0,95536.0,0.2527618]
[1763302238552,0.02093376,95540.0,95536.0,0.3281343]
[1763302238937,0.02093376,95540.0,95536.0,0.2537618]
[1763302239172,0.02093376,95540.0,95536.0,0.04341874]
[1763302239384,0.02093376,95540.0,95536.0,0.11879124]
[1763302239685,0.02093376,95540.0,95536.0,0.11979124]
[1763302240677,0.23027203,95540.0,95536.0,0.11979124]
[1763302240883,0.0002,95550.0,95549.0,0.20931668]
[1763302241085,0.0002,95550.0,95549.0,0.25273542]
[1763302241316,0.03143677,95569.0,95549.0,0.25273542]
[1763302241317,0.03143677,95569.0,95568.0,0.20927507]
[1763302241501,0.0002,95570.0,95568.0,0.20927507]
[1763302241701,0.0002,95570.0,95569.0,0.04341874]
[1763302242132,0.00033546,95570.0,95569.0,0.36641874]
[1763302243052,0.00033546,95570.0,95569.0,0.36741874]
[1763302243644,0.00033546,95570.0,95569.0,0.36641874]
[1763302244688,0.00033546,95570.0,95569.0,0.36841874]
[1763302244893,0.00033546,95570.0,95569.0,0.36941874]
[1763302247932,0.00033546,95570.0,95569.0,0.25569162]
[1763302248139,0.00033546,95570.0,95569.0,0.003]
[1763302248438,0.00033546,95570.0,95564.0,0.04341874]
[1763302248674,0.20960746,95570.0,95569.0,0.002]
[1763302248891,0.00033546,95570.0,95569.0,0.002]
[1763302249015,0.00033546,95570.0,95569.0,0.001]
[1763302249225,0.02842546,95570.0,95569.0,0.001]
[1763302249441,0.04935922,95570.0,95569.0,0.001]
[1763302250121,0.04935922,95570.0,95569.0,0.002]
[1763302250662,0.04935922,95570.0,95569.0,0.001]
[1763302253612,0.04935922,95570.0,95550.0,4e-05]
[1763302253819,0.2093069,95554.0,95550.0,4e-05]
[1763302254024,0.2093107,95552.0,95550.0,4e-05]
[1763302254225,0.02809,95551.0,95550.0,4e-05]
[1763302255066,0.02809,95551.0,95550.0,0.00104]
[1763302255267,0.02809,95551.0,95550.0,4e-05]
[1763302255681,0.02809,95551.0,95550.0,0.00204]
[1763302256304,0.03484,95559.0,95550.0,0.00204]
[1763302256561,0.20930354,95555.0,95550.0,0.00204]
[1763302257307,0.20930354,95555.0,95550.0,0.00104]
[1763302257513,0.20930354,95555.0,95550.0,4e-05]
[1763302257871,0.20930932,95553.0,95550.0,0.00104]
[1763302258198,0.20930471,95555.0,95550.0,0.00104]
[1763302258344,0.01632,95551.0,95550.0,0.00204]
[1763302258745,0.01632,95551.0,95550.0,4e-05]
[1763302258984,0.01632,95551.0,95550.0,0.00104]
[1763302259166,0.01632,95551.0,95550.0,0.00204]
[1763302259471,0.2256323,95551.0,95550.0,0.00204]
[1763302260520,0.2256323,95551.0,95550.0,0.00104]
[1763302261217,0.2256323,95551.0,95550.0,0.00204]
[1763302262826,0.20937585,95522.0,95520.0,4e-05]
[1763302263036,0.01604,95532.0,95520.0,4e-05]
[1763302263242,0.01204,95536.0,95520.0,0.04345874]
[1763302263452,0.01204,95536.0,95524.0,0.04341874]
[1763302263660,0.20934735,95535.0,95523.0,0.20937365]
[1763302263830,0.2093581,95531.0,95525.0,0.20936927]
[1763302264082,4.723e-05,95531.0,95527.0,0.20936356]
[1763302264267,4.723e-05,95531.0,95525.0,0.20936927]
[1763302264466,0.20937028,95525.0,95522.0,0.04341874]
[1763302264670,4.723e-05,95531.0,95524.0,0.04541874]
[1763302264814,0.20940344,95531.0,95524.0,0.04541874]
[1763302265019,0.20940344,95531.0,95524.0,0.04441874]
[1763302265216,0.20940344,95531.0,95527.0,0.001]
[1763302265535,0.20154677,95531.0,95525.0,0.001]
[1763302266223,0.20154677,95531.0,95526.0,0.04341874]
[1763302266420,0.20935396,95532.0,95526.0,0.04341874]
[1763302267003,0.01204,95536.0,95528.0,0.20936269]
[1763302267212,0.20933408,95542.0,95528.0,0.04341874]
[1763302267413,4.714e-05,95542.0,95531.0,0.04341874]
[1763302267624,4.714e-05,95542.0,95538.0,0.20934022]
[1763302268489,4.714e-05,95542.0,95540.0,0.20933596]
[1763302268784,4.714e-05,95542.0,95538.0,0.20934022]
[1763302268998,4.714e-05,95542.0,95540.0,0.20933423]
[1763302269194,4.714e-05,95542.0,95541.0,0.04341874]
[1763302269779,4.714e-05,95542.0,95540.0,0.04341874]
[1763302269985,0.20933421,95541.0,95540.0,0.04341874]
[1763302270298,0.20933421,95541.0,95539.0,0.04341874]
[1763302270686,0.20933421,95541.0,95536.0,0.04341874]
[1763302270887,4.714e-05,95542.0,95539.0,0.04341874]
[1763302271331,4.714e-05,95542.0,95541.0,0.04341874]
[1763302273705,4.714e-05,95542.0,95541.0,0.04441874]
[1763302273915,4.714e-05,95542.0,95541.0,0.04541874]
[1763302276321,0.01557714,95542.0,95541.0,0.04541874]
[1763302277206,0.01557714,95542.0,95541.0,0.04441874]
[1763302277412,0.01557714,95542.0,95534.0,0.0751738]
[1763302277413,0.2093447,95537.0,95534.0,0.0751738]
[1763302277598,0.2093605,95529.0,95528.0,0.0751738]
[1763302277784,0.2093605,95529.0,95528.0,0.11859254]
[1763302277988,0.2248905,95529.0,95528.0,0.11859254]
[1763302278188,0.01224,95552.0,95529.0,0.04341874]
[1763302278389,0.02093376,95549.0,95540.0,0.20933518]
[1763302278590,0.02093376,95548.0,95539.0,0.11861894]
[1763302278810,0.20933421,95541.0,95539.0,0.04341874]
[1763302279044,0.25804016,95540.0,95538.0,0.04341874]
[1763302279203,0.05793376,95540.0,95537.0,0.04341874]
[1763302279409,0.01553,95538.0,95537.0,0.11861894]
[1763302279604,0.03646376,95538.0,95537.0,0.11861894]
[1763302280004,0.03646376,95538.0,95537.0,0.32796191]
[1763302280207,0.02093376,95544.0,95541.0,0.20933421]
[1763302280555,0.02093376,95549.0,95541.0,0.28458166]
[1763302280707,0.2093198,95548.0,95541.0,0.20933421]
[1763302280908,0.2093198,95548.0,95541.0,0.28458166]
[1763302281107,0.02476,95555.0,95541.0,0.28458166]
[1763302281337,0.02093376,95551.0,95541.0,0.21033421]
[1763302281532,0.23024728,95551.0,95541.0,0.21033421]
[1763302282541,0.02093376,95551.0,95541.0,0.21033421]
[1763302282818,0.02093376,95551.0,95541.0,0.25375295]
[1763302283373,0.02093376,95551.0,95541.0,0.04441874]
[1763302283568,0.20932257,95547.0,95541.0,0.04441874]
[1763302284105,0.02476,95551.0,95541.0,0.25375295]
[1763302284327,0.23025037,95550.0,95541.0,0.25375295]
[1763302284655,0.20932357,95546.0,95541.0,0.25375295]
[1763302285051,0.02476,95551.0,95541.0,0.25375295]
[1763302285266,0.23714916,95542.0,95541.0,0.04441874]
[1763302285472,0.23714916,95542.0,95541.0,0.11974051]
[1763302286117,0.23714916,95542.0,95541.0,0.07632177]
[1763302286334,0.23714916,95542.0,95541.0,0.001]
[1763302287156,0.20934516,95536.0,95535.0,0.07532177]
[1763302287525,0.22487516,95536.0,95535.0,0.07532177]
[1763302288414,0.01553,95536.0,95535.0,0.07532177]
[1763302288871,0.01553,95536.0,95535.0,0.07632177]
[1763302292491,0.0622494,95537.0,95535.0,0.07632177]
[1763302292712,0.01658,95536.0,95535.0,0.001]
[1763302292917,0.03751376,95536.0,95535.0,0.001]
[1763302293546,0.01228714,95542.0,95535.0,0.001]
[1763302293753,0.02093376,95541.0,95535.0,0.21034531]
[1763302293944,0.01228714,95542.0,95536.0,0.20934311]
[1763302294140,0.01228714,95542.0,95538.0,0.20933996]
[1763302295007,0.01228714,95542.0,95533.0,0.04341874]
[1763302295144,0.20934516,95536.0,95533.0,0.04341874]
[1763302295342,0.20935393,95532.0,95531.0,0.04341874]
[1763302295546,0.01127,95534.0,95531.0,0.04341874]
[1763302296255,0.01127,95534.0,95531.0,0.25277368]
[1763302296689,0.01127,95534.0,95533.0,0.04341874]
[1763302296909,0.02093376,95540.0,95535.0,0.04341874]
[1763302297122,0.02093376,95539.0,95535.0,0.04341874]
[1763302298120,0.02093376,95540.0,95535.0,0.04341874]
[1763302298335,0.02093376,95539.0,95535.0,0.04441874]
[1763302298567,0.20935393,95532.0,95531.0,0.04341874]
[1763302299217,0.20934537,95536.0,95531.0,0.04341874]
[1763302299431,0.20934078,95538.0,95533.0,0.04341874]
[1763302299639,0.019733,95537.0,95533.0,0.04341874]
[1763302299865,0.01865866,95540.0,95533.0,0.04341874]
[1763302300089,0.20934486,95537.0,95531.0,0.2527732]
[1763302300321,0.01779096,95539.0,95531.0,0.04341874]
[1763302300560,0.01689421,95538.0,95535.0,0.001]
[1763302300782,0.20935557,95532.0,95531.0,0.04341874]
[1763302301033,0.20934541,95536.0,95534.0,0.04341874]
[1763302301489,0.20934541,95536.0,95532.0,0.04341874]
[1763302301687,0.20934929,95535.0,95532.0,0.04341874]
[1763302301902,0.20935174,95533.0,95532.0,0.04341874]
[1763302302113,0.22062174,95533.0,95531.0,0.04341874]
[1763302302800,0.20936311,95528.0,95526.0,0.09401394]
[1763302303022,0.20936311,95528.0,95520.0,4e-05]
[1763302303023,0.20936311,95528.0,95527.0,0.04341874]
[1763302303233,0.20936927,95525.0,95524.0,0.09401394]
[1763302303448,0.23721927,95525.0,95524.0,0.13743268]
[1763302303659,0.23721927,95525.0,95524.0,0.04341874]
[1763302304295,0.20937804,95521.0,95520.0,0.09405394]
[1763302304573,0.20892293,95521.0,95520.0,0.04345874]
[1763302306447,0.20892293,95521.0,95520.0,0.04445874]
[1763302306800,0.20892293,95521.0,95520.0,0.04545874]
[1763302307200,0.01658,95521.0,95520.0,0.04545874]
[1763302307806,0.20937365,95523.0,95521.0,0.04341874]
[1763302308235,0.20937804,95521.0,95520.0,0.00204]
[1763302308840,0.20937804,95521.0,95520.0,0.00104]
[1763302308995,0.22595804,95521.0,95520.0,0.00104]
[1763302309400,0.01658,95521.0,95520.0,0.04445874]
[1763302309641,0.22595804,95521.0,95520.0,0.04345874]
[1763302309864,0.01658,95521.0,95520.0,0.04445874]
[1763302310040,0.22595804,95521.0,95520.0,0.04445874]
[1763302310653,0.22595804,95521.0,95520.0,0.04545874]
[1763302315457,0.20937804,95521.0,95520.0,0.04545874]
[1763302315837,0.20937494,95523.0,95521.0,0.04341874]
[1763302316247,0.20937494,95523.0,95522.0,0.1187678]
[1763302317805,0.20937494,95523.0,95522.0,0.1197678]
[1763302318786,0.20937494,95523.0,95522.0,0.1207678]
[1763302319816,0.22595494,95523.0,95522.0,0.1207678]
[1763302320016,0.22595494,95523.0,95522.0,0.002]
[1763302321105,0.22595494,95523.0,95522.0,0.001]
[1763302321514,0.22595494,95523.0,95522.0,0.002]
[1763302322304,0.22595494,95523.0,95522.0,0.001]
[1763302322701,0.22595494,95523.0,95522.0,0.002]
[1763302325619,0.25740479,95523.0,95522.0,0.002]
[1763302327307,0.03144985,95523.0,95522.0,0.002]
[1763302327708,0.03144985,95523.0,95522.0,0.001]
[1763302328356,0.01127,95525.0,95522.0,0.001]
[1763302328561,0.01127,95529.0,95522.0,0.04341874]
[1763302328801,0.02093376,95532.0,95524.0,0.04341874]
[1763302328946,0.01228714,95542.0,95520.0,4e-05]
[1763302328947,0.2302778,95537.0,95528.0,0.04341874]
[1763302329141,0.20934772,95535.0,95530.0,0.04341874]
[1763302329346,0.02093376,95534.0,95530.0,0.04341874]
[1763302329549,0.02093376,95534.0,95530.0,0.25277499]
[1763302329746,0.02093376,95536.0,95530.0,0.25277499]
[1763302330087,0.02093376,95535.0,95532.0,0.04341874]
[1763302330244,0.02093376,95537.0,95532.0,0.04341874]
[1763302330447,0.02093376,95536.0,95532.0,0.04341874]
[1763302330645,0.01228714,95542.0,95533.0,0.20935174]
[1763302330872,0.0332209,95542.0,95535.0,0.20934723]
[1763302331084,0.01228714,95542.0,95535.0,0.20934723]
[1763302331451,0.20933421,95541.0,95535.0,0.20934723]
[1763302332159,0.01228714,95542.0,95536.0,0.20934298]
[1763302333008,0.01228714,95542.0,95537.0,0.20934081]
[1763302333214,0.2093364,95540.0,95533.0,0.07534906]
[1763302333419,0.2093364,95540.0,95532.0,0.3281203]
[1763302333779,0.2093364,95540.0,95533.0,0.20934956]
[1763302334203,0.01228714,95542.0,95532.0,0.1187678]
[1763302334377,4.714e-05,95542.0,95540.0,0.20933427]
[1763302335613,4.714e-05,95542.0,95539.0,0.25275597]
[1763302335877,4.714e-05,95542.0,95541.0,0.25275295]
[1763302338223,0.2093364,95540.0,95537.0,0.07534906]
[1763302338478,4.714e-05,95542.0,95537.0,0.07534906]
[1763302338672,4.714e-05,95542.0,95541.0,0.001]
[1763302338852,4.714e-05,95542.0,95536.0,0.07534906]
[1763302339054,4.714e-05,95542.0,95535.0,0.1187678]
[1763302339431,0.20938018,95542.0,95535.0,0.1187678]
[1763302339634,0.20933694,95540.0,95535.0,0.04341874]
[1763302340081,4.714e-05,95542.0,95541.0,0.04341874]
[1763302342037,4.714e-05,95542.0,95541.0,0.04441874]
[1763302342251,4.714e-05,95542.0,95541.0,0.04341874]
[1763302342657,4.714e-05,95542.0,95541.0,0.04441874]
[1763302344009,4.714e-05,95542.0,95541.0,0.04541874]
[1763302345234,4.714e-05,95542.0,95541.0,0.12057434]
[1763302345596,4.714e-05,95542.0,95541.0,0.04541874]
[1763302346139,0.20937916,95542.0,95541.0,0.04541874]
[1763302347865,4.714e-05,95542.0,95541.0,0.04541874]
[1763302348069,0.20937916,95542.0,95541.0,0.04541874]
[1763302348707,0.20937916,95542.0,95541.0,0.002]
[1763302350086,0.20937916,95542.0,95541.0,0.001]
[1763302350285,0.20937916,95542.0,95534.0,0.11857434]
[1763302350286,0.20934341,95537.0,95534.0,0.11857434]
[1763302350507,0.20934341,95537.0,95534.0,0.04341874]
[1763302351170,0.20934717,95536.0,95534.0,0.11857434]
[1763302351584,0.20934955,95534.0,95533.0,0.04341874]
[1763302351987,0.20934104,95538.0,95533.0,0.04341874]
[1763302352615,0.20934104,95538.0,95534.0,0.001]
[1763302352817,0.20934735,95535.0,95533.0,0.04341874]
[1763302353192,0.20934297,95537.0,95533.0,0.04441874]
[1763302353548,0.20934297,95537.0,95534.0,0.001]
[1763302353913,0.20934297,95537.0,95533.0,0.11857434]
[1763302354307,0.20934297,95537.0,95533.0,0.11957434]
[1763302354724,0.20934297,95537.0,95534.0,0.001]
[1763302355208,0.20934807,95535.0,95534.0,0.11857434]
[1763302356037,0.20934807,95535.0,95534.0,0.11957434]
[1763302356241,0.20933875,95539.0,95535.0,0.04341874]
[1763302356451,0.20933875,95539.0,95535.0,0.1186599]
[1763302356650,4.714e-05,95542.0,95537.0,0.04341874]
[1763302357133,4.714e-05,95542.0,95539.0,0.04341874]
[1763302357416,4.714e-05,95542.0,95540.0,0.2093364]
[1763302358147,4.714e-05,95542.0,95541.0,0.07524116]
[1763302359042,4.714e-05,95542.0,95540.0,0.07624116]
[1763302359242,0.01768385,95542.0,95541.0,0.07524116]
[1763302359585,0.01768385,95542.0,95541.0,0.07624116]
[1763302360300,0.01815824,95542.0,95541.0,0.001]
[1763302360712,0.01815824,95542.0,95541.0,0.002]
[1763302360972,0.01815824,95542.0,95541.0,0.001]
[1763302362151,0.01815824,95542.0,95541.0,0.002]
[1763302363705,0.02962824,95542.0,95541.0,0.002]
[1763302363907,0.01815824,95542.0,95541.0,0.002]
[1763302364490,0.01815824,95542.0,95541.0,0.001]
[1763302364904,0.20933421,95541.0,95540.0,0.07524116]
[1763302365108,0.20933421,95541.0,95532.0,0.20935368]
[1763302365109,0.20934159,95538.0,95533.0,0.04341874]
[1763302365510,0.20934516,95536.0,95533.0,0.04341874]
[1763302365945,0.20934516,95536.0,95531.0,0.25277318]
[1763302366550,0.20934516,95536.0,95533.0,0.001]
[1763302366958,0.20934516,95536.0,95531.0,0.04341874]
[1763302367358,0.20934516,95536.0,95531.0,0.04441874]
[1763302367557,0.20934042,95539.0,95533.0,0.2103508]
[1763302367754,0.20938006,95542.0,95531.0,0.04441874]
[1763302367755,0.20934519,95536.0,95531.0,0.04441874]
[1763302368182,0.20934519,95536.0,95531.0,0.04541874]
[1763302368460,0.20934519,95536.0,95531.0,0.04441874]
[1763302368607,0.2093417,95538.0,95533.0,0.04441874]
[1763302368807,0.2093417,95538.0,95533.0,0.25376853]
[1763302369411,0.2093417,95538.0,95533.0,0.25276853]
[1763302369612,4.714e-05,95542.0,95535.0,0.20934522]
[1763302369909,0.0209809,95542.0,95540.0,0.07538079]
[1763302371258,0.0209809,95542.0,95541.0,0.07538079]
[1763302372043,0.02812714,95542.0,95541.0,0.07538079]
[1763302372248,0.20933421,95541.0,95540.0,0.001]
[1763302372382,0.20933859,95539.0,95538.0,0.07538079]
[1763302372987,0.20933859,95539.0,95517.0,0.34031529]
[1763302372988,0.20934735,95535.0,95534.0,0.07538079]
[1763302373391,0.22081735,95535.0,95534.0,0.07538079]
[1763302373669,0.22081735,95535.0,95533.0,0.07538079]
[1763302373876,0.22081735,95535.0,95522.0,0.09401394]
[1763302373877,0.20935174,95533.0,95531.0,0.07538079]
[1763302374082,0.20936269,95528.0,95525.0,0.07538079]
[1763302374281,0.20936489,95527.0,95526.0,0.07538079]
[1763302374613,0.20936489,95527.0,95525.0,0.07538079]
[1763302375168,0.20936927,95525.0,95524.0,0.07538079]
[1763302375371,0.0246,95546.0,95520.0,4e-05]
[1763302375585,0.20935346,95533.0,95527.0,0.07537249]
[1763302375950,0.20934974,95534.0,95527.0,0.2847365]
[1763302376190,0.20934297,95537.0,95527.0,0.20936401]
[1763302376386,0.20934863,95535.0,95527.0,0.20936401]
[1763302376587,0.20934297,95537.0,95529.0,0.20935999]
[1763302376776,0.02093376,95536.0,95529.0,0.20935999]
[1763302377166,0.02093376,95536.0,95526.0,0.07537249]
[1763302377389,0.0209809,95542.0,95529.0,0.07537249]
[1763302377565,0.02093376,95541.0,95533.0,0.28472389]
[1763302377769,4.714e-05,95542.0,95534.0,0.20934751]
[1763302378002,0.20938006,95542.0,95536.0,0.20934462]
[1763302378402,4.714e-05,95542.0,95536.0,0.20934462]
[1763302379023,4.714e-05,95542.0,95534.0,0.07537249]
[1763302379198,4.714e-05,95542.0,95539.0,0.20933666]
[1763302379399,4.714e-05,95542.0,95541.0,0.20933421]
[1763302379580,4.714e-05,95542.0,95541.0,0.2847067]
[1763302380204,4.714e-05,95542.0,95541.0,0.57575295]
[1763302380603,0.20929751,95558.0,95551.0,0.20931123]
[1763302380796,0.02093376,95557.0,95553.0,0.07533203]
[1763302380994,0.2092967,95559.0,95554.0,0.07533203]
[1763302381258,0.02093376,95558.0,95554.0,0.07533203]
[1763302381444,0.20929916,95557.0,95554.0,0.07533203]
[1763302381600,0.02093376,95556.0,95553.0,0.07533203]
[1763302381812,0.02093376,95560.0,95553.0,0.07533203]
[1763302382005,0.02093376,95559.0,95553.0,0.07633203]
[1763302382300,0.02093376,95559.0,95553.0,0.001]
[1763302382530,0.20930457,95555.0,95553.0,0.001]
[1763302382727,0.02093376,95554.0,95553.0,0.001]
[1763302383048,0.0209788,95554.0,95553.0,0.001]
[1763302383208,0.0209788,95554.0,95552.0,0.07533203]
[1763302384000,4.504e-05,95554.0,95552.0,0.07533203]
[1763302384195,4.504e-05,95554.0,95553.0,0.001]
[1763302384395,0.20931011,95552.0,95549.0,0.07533203]
[1763302384631,0.20932049,95548.0,95546.0,0.07533203]
[1763302385450,0.20932049,95548.0,95545.0,0.07533203]
[1763302387136,0.20932544,95545.0,95544.0,0.07533203]
[1763302389005,0.20932049,95548.0,95537.0,0.07533203]
[1763302389142,0.20933877,95539.0,95537.0,0.04341874]
[1763302389823,0.20933877,95539.0,95536.0,0.07533203]
[1763302389824,0.20933877,95539.0,95536.0,0.04341874]
[1763302390024,0.20933922,95539.0,95536.0,0.04341874]
[1763302390164,0.20933922,95539.0,95534.0,0.04341874]
[1763302390346,0.01195,95543.0,95535.0,0.04341874]
[1763302390773,0.2212805,95543.0,95537.0,0.04441874]
[1763302390991,0.2212805,95543.0,95537.0,0.04341874]
[1763302391445,0.02263,95547.0,95534.0,0.04441874]
[1763302391693,0.20934688,95536.0,95534.0,0.04441874]
[1763302392234,0.20934328,95537.0,95534.0,0.04441874]
[1763302392471,0.02263,95546.0,95534.0,0.04441874]